bitfinex-derivatives/quotes_BTCF0:USTF0_20250918
["timestamp","ask_amount","ask_price","bid_price","bid_amount"]
[1758187413937,0.76438,117420.0,117410.0,2.69752403]
[1758187414137,0.76438,117420.0,117410.0,3.47016403]
[1758187418438,0.76438,117420.0,117410.0,3.39347018]
[1758187418832,0.76438,117420.0,117410.0,2.62083018]
[1758187419029,0.76438,117420.0,117410.0,3.39347018]
[1758187419338,0.51438,117420.0,117410.0,3.39347018]
[1758187420139,0.51438,117420.0,117410.0,3.47016403]
[1758187421842,0.76438,117420.0,117410.0,2.70027509]
[1758187422042,0.76469,117420.0,117410.0,2.70027509]
[1758187422340,1.09708509,117420.0,117410.0,2.70027509]
[1758187424243,1.09708509,117420.0,117410.0,1.92763509]
[1758187424647,0.76469,117420.0,117410.0,2.70027509]
[1758187424948,0.76469,117420.0,117410.0,1.92763509]
[1758187425140,0.76469,117420.0,117410.0,2.70027509]
[1758187425339,1.09708509,117420.0,117410.0,2.70027509]
[1758187425539,1.45788509,117420.0,117410.0,2.70027509]
[1758187425746,1.45788509,117420.0,117410.0,1.92763509]
[1758187426045,1.45788509,117420.0,117410.0,2.70027509]
[1758187426244,1.45788509,117420.0,117410.0,1.92763509]
[1758187426445,1.45788509,117420.0,117410.0,2.70027509]
[1758187426846,1.79028018,117420.0,117410.0,2.70027509]
[1758187427150,1.45788509,117420.0,117410.0,2.70027509]
[1758187427849,1.12549,117420.0,117410.0,2.70027509]
[1758187428037,1.45788509,117420.0,117410.0,2.70027509]
[1758187429047,1.45788509,117420.0,117410.0,2.36788]
[1758187429248,1.45788509,117420.0,117410.0,2.70027509]
[1758187430758,1.79028018,117420.0,117410.0,1.59524]
[1758187431052,1.81186979,117420.0,117410.0,2.36788]
[1758187431451,1.81186979,117420.0,117410.0,2.70027509]
[1758187432350,1.81186979,117420.0,117410.0,2.36792]
[1758187432940,1.81186979,117420.0,117410.0,1.59524]
[1758187433142,1.81186979,117420.0,117410.0,2.36788]
[1758187433343,1.79028018,117420.0,117410.0,2.36788]
[1758187435252,1.79028018,117420.0,117410.0,1.59524]
[1758187435455,1.79028018,117420.0,117410.0,2.36792]
[1758187436453,1.79028018,117420.0,117410.0,2.70031509]
[1758187437655,1.81184652,117420.0,117410.0,2.36792]
[1758187437851,1.81184652,117420.0,117410.0,2.70031509]
[1758187440561,1.79028018,117420.0,117410.0,2.70031509]
[1758187443356,1.811847,117420.0,117410.0,2.70031509]
[1758187444156,1.811847,117420.0,117410.0,2.36792]
[1758187444459,1.811847,117420.0,117410.0,2.70031509]
[1758187445562,1.811847,117420.0,117410.0,1.10507509]
[1758187455971,1.14705682,117420.0,117410.0,1.10507509]
[1758187456170,1.811847,117420.0,117410.0,1.10507509]
[1758187457369,1.834007,117420.0,117410.0,0.33239509]
[1758187457571,1.834007,117420.0,117410.0,1.10511509]
[1758187462683,0.03528,117410.0,117400.0,0.41753889]
[1758187462878,0.75004191,117410.0,117400.0,1.52265398]
[1758187463883,0.75104191,117410.0,117400.0,1.52265398]
[1758187464579,0.81787159,117410.0,117400.0,1.52265398]
[1758187464984,0.75104191,117410.0,117400.0,1.52265398]
[1758187465190,0.75104191,117410.0,117400.0,0.66479018]
[1758187465380,0.77072036,117410.0,117400.0,0.8578641]
[1758187465678,0.77072036,117410.0,117400.0,1.52265428]
[1758187468185,0.77072036,117410.0,117400.0,1.19025919]
[1758187469285,0.77072036,117410.0,117400.0,1.52265428]
[1758187469781,0.72659727,117410.0,117400.0,1.07959941]
[1758187472085,0.50486196,117410.0,117400.0,1.07959941]
[1758187472286,0.72659727,117410.0,117400.0,1.07959941]
[1758187472485,0.72659727,117410.0,117400.0,0.22173531]
[1758187472789,0.72659727,117410.0,117400.0,0.99441531]
[1758187473294,0.72659727,117410.0,117400.0,0.22173531]
[1758187473493,0.72659727,117410.0,117400.0,0.99441531]
[1758187473693,0.03707,117400.0,117390.0,0.10273433]
[1758187473886,0.05863682,117400.0,117390.0,1.09714964]
[1758187475293,0.05863682,117400.0,117390.0,0.32446964]
[1758187475494,0.05863682,117400.0,117390.0,1.09714964]
[1758187475694,0.05863682,117400.0,117390.0,1.09814964]
[1758187476293,0.05963682,117400.0,117390.0,1.09814964]
[1758187476794,0.06808575,117400.0,117390.0,1.09814964]
[1758187478798,0.05963682,117400.0,117390.0,1.09814964]
[1758187478992,0.03807,117400.0,117390.0,1.09814964]
[1758187480899,0.03807,117400.0,117390.0,1.08056091]
[1758187483598,0.03807,117400.0,117390.0,1.15725476]
[1758187485300,0.03807,117400.0,117390.0,0.38457476]
[1758187485601,0.03807,117400.0,117390.0,1.15725476]
[1758187488402,0.03807,117400.0,117390.0,0.38457476]
[1758187488603,0.03807,117400.0,117390.0,1.15725476]
[1758187489402,0.03807,117400.0,117390.0,0.93551945]
[1758187489701,0.03807,117400.0,117390.0,1.15725476]
[1758187490006,0.03807,117400.0,117390.0,0.38457476]
[1758187490204,0.03807,117400.0,117390.0,1.15725476]
[1758187491300,0.03807,117400.0,117390.0,0.38457476]
[1758187491501,0.03807,117400.0,117390.0,1.15725476]
[1758187494608,0.03807,117400.0,117390.0,0.38457476]
[1758187494802,0.39887,117400.0,117390.0,1.15721476]
[1758187495007,0.39887,117400.0,117390.0,1.08052091]
[1758187499510,0.39887,117400.0,117390.0,0.30788091]
[1758187499708,0.39887,117400.0,117390.0,1.08052091]
[1758187501012,0.39887,117400.0,117390.0,0.30788091]
[1758187501207,0.39887,117400.0,117390.0,0.001]
[1758187501409,1.09234062,117400.0,117390.0,0.001]
[1758187501616,1.11399506,117400.0,117390.0,0.001]
[1758187501914,1.11399506,117400.0,117390.0,0.77364]
[1758187502507,1.11399506,117400.0,117390.0,0.001]
[1758187502707,1.11399506,117400.0,117390.0,0.77364]
[1758187507519,1.11399506,117400.0,117390.0,0.77368]
[1758187510718,1.11399506,117400.0,117390.0,0.77372]
[1758187511917,1.11399506,117400.0,117390.0,0.001]
[1758187512119,1.11399506,117400.0,117390.0,0.77372]
[1758187513219,1.11399506,117400.0,117390.0,0.001]
[1758187513416,1.11399506,117400.0,117390.0,0.77372]
[1758187514418,1.14469604,117400.0,117390.0,0.77372]
[1758187515115,1.14469604,117400.0,117390.0,0.70372]
[1758187515920,1.14469604,117400.0,117380.0,1.59512]
[1758187516120,0.59558531,117390.0,117380.0,1.59512]
[1758187516318,0.63735627,117390.0,117380.0,2.36784]
[1758187517116,0.85909158,117390.0,117380.0,1.59512]
[1758187517328,0.85909158,117390.0,117350.0,0.3467023]
[1758187517329,0.03503,117360.0,117350.0,0.3467023]
[1758187517523,0.39583,117360.0,117350.0,1.1194223]
[1758187518223,0.03503,117360.0,117350.0,1.1194223]
[1758187518423,0.40426943,117360.0,117350.0,1.1194223]
[1758187518620,0.40426943,117360.0,117350.0,1.1224223]
[1758187519021,0.40426943,117360.0,117350.0,1.1264223]
[1758187519919,0.40426943,117360.0,117350.0,0.3537023]
[1758187520125,0.40426943,117360.0,117350.0,1.1264623]
[1758187521926,0.40426943,117360.0,117350.0,1.0412877]
[1758187522124,0.47110021,117360.0,117350.0,1.0412877]
[1758187523423,0.47110021,117360.0,117350.0,0.2685277]
[1758187523624,0.47110021,117360.0,117350.0,1.0412877]
[1758187525426,0.47110021,117360.0,117350.0,1.138138]
[1758187525730,0.46266078,117360.0,117350.0,1.138138]
[1758187531734,0.46266078,117360.0,117350.0,1.24923014]
[1758187535336,0.46266078,117360.0,117350.0,1.24927014]
[1758187535932,0.79548823,117360.0,117350.0,1.24927014]
[1758187546046,0.79548823,117360.0,117350.0,1.24527014]
[1758187546238,0.46266078,117360.0,117350.0,1.24327014]
[1758187547446,0.46266078,117360.0,117350.0,1.31996399]
[1758187547946,0.79548823,117360.0,117350.0,1.31992399]
[1758187549147,0.79648823,117360.0,117350.0,1.31992399]
[1758187549749,0.79648823,117360.0,117350.0,1.31892399]
[1758187550944,0.79548823,117360.0,117350.0,1.31892399]
[1758187551149,0.79648823,117360.0,117350.0,1.31892399]
[1758187551844,0.46366078,117360.0,117350.0,1.31892399]
[1758187552350,0.79648823,117360.0,117350.0,1.31892399]
[1758187552650,0.79548823,117360.0,117350.0,1.31892399]
[1758187553343,0.79548823,117360.0,117350.0,1.31992399]
[1758187554256,0.46266078,117360.0,117350.0,1.31992399]
[1758187554551,0.79548823,117360.0,117350.0,1.31992399]
[1758187557463,0.10186078,117360.0,117350.0,1.31992399]
[1758187557663,0.08881078,117360.0,117350.0,1.31992399]
[1758187558664,0.08881078,117360.0,117350.0,1.65275144]
[1758187558961,0.08881078,117360.0,117350.0,1.31992399]
[1758187560565,0.38287,117370.0,117360.0,0.1189232]
[1758187560766,0.38277,117370.0,117360.0,0.7845781]
[1758187561064,0.71559745,117370.0,117360.0,0.7845781]
[1758187561268,0.38277,117370.0,117360.0,0.7845781]
[1758187561565,0.38277,117370.0,117360.0,1.5572981]
[1758187563567,0.38377,117370.0,117360.0,1.5572981]
[1758187565268,0.45169205,117370.0,117360.0,1.5572981]
[1758187567969,0.45169205,117370.0,117360.0,0.8916432]
[1758187568169,0.45169205,117370.0,117360.0,1.5572981]
[1758187569370,0.45169205,117370.0,117360.0,1.5572581]
[1758187570770,0.7845195,117370.0,117360.0,1.5572581]
[1758187571373,0.45169205,117370.0,117360.0,1.5572581]
[1758187571569,0.7845195,117370.0,117360.0,0.7845781]
[1758187571770,0.7845195,117370.0,117360.0,1.5572581]
[1758187574675,0.7845195,117370.0,117360.0,0.8916032]
[1758187574873,0.7984395,117370.0,117360.0,1.5572581]
[1758187579771,0.46561205,117370.0,117360.0,1.5572581]
[1758187581778,0.7984395,117370.0,117360.0,1.5572581]
[1758187583581,0.7984395,117370.0,117360.0,0.1189232]
[1758187583782,0.7984395,117370.0,117360.0,1.5571781]
[1758187585281,0.7984395,117370.0,117360.0,0.7845781]
[1758187585579,0.7984395,117370.0,117360.0,1.5571781]
[1758187587784,0.7984395,117370.0,117360.0,0.7845781]
[1758187588081,0.7984395,117370.0,117360.0,1.5571781]
[1758187589677,0.7984395,117370.0,117360.0,0.7845781]
[1758187589883,0.7984395,117370.0,117360.0,1.5571781]
[1758187590879,0.46561205,117370.0,117360.0,1.5571781]
[1758187591084,0.7984395,117370.0,117360.0,1.5571781]
[1758187591787,0.46561205,117370.0,117360.0,1.33522388]
[1758187592085,0.46561205,117370.0,117360.0,1.11337354]
[1758187593181,0.45169205,117370.0,117360.0,1.33522388]
[1758187593888,0.45169205,117370.0,117360.0,1.34392383]
[1758187594286,0.001,117370.0,117360.0,1.34392383]
[1758187594489,0.001,117370.0,117360.0,1.67061768]
[1758187596382,0.001,117370.0,117360.0,1.59392383]
[1758187598389,0.001,117370.0,117360.0,0.82132383]
[1758187598588,0.001,117370.0,117360.0,1.59384383]
[1758187599290,0.001,117370.0,117360.0,1.34384383]
[1758187599688,0.001,117370.0,117360.0,0.57132383]
[1758187599989,0.001,117370.0,117360.0,1.34384383]
[1758187601789,0.001,117370.0,117360.0,0.57132383]
[1758187602284,0.001,117370.0,117360.0,1.34380383]
[1758187602485,0.001,117370.0,117360.0,0.57132383]
[1758187603189,0.001,117370.0,117360.0,1.34380383]
[1758187603389,0.001,117370.0,117360.0,1.33510388]
[1758187603788,0.001,117370.0,117360.0,0.56262388]
[1758187603990,0.001,117370.0,117360.0,1.33510388]
[1758187604289,0.001,117370.0,117360.0,0.56262388]
[1758187604487,0.001,117370.0,117360.0,1.33510388]
[1758187605090,0.001,117370.0,117360.0,1.34370022]
[1758187605392,0.001,117370.0,117360.0,0.56262388]
[1758187605592,0.001,117370.0,117360.0,1.33510388]
[1758187606192,0.001,117370.0,117360.0,0.56262388]
[1758187606490,0.001,117370.0,117360.0,1.33510388]
[1758187607591,0.001,117370.0,117360.0,1.34378954]
[1758187607787,0.001,117370.0,117360.0,1.70458954]
[1758187613496,0.001,117370.0,117360.0,1.78128339]
[1758187632919,0.001,117370.0,117360.0,2.27033671]
[1758187633217,0.0001,117380.0,117370.0,0.1115859]
[1758187633413,0.02306,117390.0,117380.0,0.1193486]
[1758187633718,0.02296,117390.0,117380.0,1.33532928]
[1758187634217,0.02296,117390.0,117380.0,1.39654944]
[1758187634516,0.02296,117390.0,117380.0,0.62426944]
[1758187634912,0.02296,117390.0,117380.0,0.56304928]
[1758187635519,0.02296,117390.0,117380.0,1.33532928]
[1758187635920,0.02496,117390.0,117380.0,1.33532928]
[1758187637113,0.002,117390.0,117380.0,1.33532928]
[1758187638214,0.02496,117390.0,117380.0,1.33528928]
[1758187639320,0.02496,117390.0,117380.0,0.56304928]
[1758187639619,0.02496,117390.0,117380.0,1.33524928]
[1758187643016,0.03888,117390.0,117380.0,0.02252]
[1758187643220,0.89113727,117390.0,117380.0,0.79468]
[1758187643420,0.03688,117370.0,117360.0,0.35841402]
[1758187643616,0.03688,117370.0,117360.0,1.42897337]
[1758187643822,0.61953034,117370.0,117360.0,1.03373332]
[1758187644016,0.61953034,117370.0,117360.0,0.03972298]
[1758187644522,0.61953034,117370.0,117360.0,1.03373332]
[1758187645021,0.62053034,117370.0,117360.0,1.03373332]
[1758187645524,0.39868,117370.0,117360.0,1.03373332]
[1758187646722,0.39868,117370.0,117360.0,0.26157332]
[1758187646923,0.39868,117370.0,117360.0,1.03385332]
[1758187647114,0.87053034,117370.0,117360.0,0.03972298]
[1758187647520,0.64868,117370.0,117360.0,0.81204298]
[1758187647721,0.87053034,117370.0,117360.0,0.81204298]
[1758187648024,0.87053034,117370.0,117360.0,1.03389332]
[1758187648221,0.87053034,117370.0,117360.0,0.81204298]
[1758187650125,0.87053034,117370.0,117360.0,0.81216298]
[1758187650526,0.87053034,117370.0,117360.0,0.78964298]
[1758187651324,0.87053034,117370.0,117360.0,0.81234298]
[1758187653821,0.98156934,117370.0,117360.0,0.81234298]
[1758187654025,1.31445868,117370.0,117360.0,0.01720298]
[1758187654224,0.01299,117360.0,117350.0,1.59578]
[1758187654426,1.03956868,117360.0,117350.0,2.36834]
[1758187655228,1.03956868,117360.0,117350.0,2.36838]
[1758187655424,1.66494742,117360.0,117320.0,0.33288934]
[1758187655627,0.36722934,117330.0,117320.0,0.35558934]
[1758187655828,0.36722934,117330.0,117320.0,1.12826934]
[1758187656222,0.36722934,117330.0,117320.0,1.46115868]
[1758187656428,0.36722934,117330.0,117320.0,0.68847868]
[1758187656626,0.36722934,117330.0,117320.0,1.54636088]
[1758187657028,0.36722934,117330.0,117320.0,0.8805822]
[1758187657221,0.36722934,117330.0,117320.0,1.54636088]
[1758187657729,0.03434,117330.0,117320.0,1.54636088]
[1758187658026,0.02135,117330.0,117320.0,1.55803088]
[1758187658824,0.02135,117330.0,117320.0,1.56103088]
[1758187659032,0.02135,117330.0,117320.0,1.56303088]
[1758187661634,0.02135,117330.0,117320.0,1.56103088]
[1758187661827,0.02135,117330.0,117320.0,1.55803088]
[1758187662425,0.02135,117330.0,117320.0,1.55811088]
[1758187662829,0.74811797,117340.0,117330.0,0.1078949]
[1758187663029,0.74811797,117340.0,117330.0,0.44078424]
[1758187663231,0.44086498,117350.0,117330.0,0.78534358]
[1758187663431,0.46221498,117350.0,117340.0,1.43861868]
[1758187663725,0.46221498,117350.0,117340.0,1.52770638]
[1758187663726,0.38215,117350.0,117340.0,1.52770638]
[1758187663926,0.39514,117360.0,117350.0,0.0227]
[1758187664133,0.39514,117360.0,117350.0,0.35558934]
[1758187664432,0.72802934,117360.0,117350.0,0.35558934]
[1758187664632,0.39514,117360.0,117350.0,0.35558934]
[1758187664834,0.40211781,117370.0,117360.0,0.03437]
[1758187665133,0.01996781,117370.0,117360.0,1.55824178]
[1758187666332,0.05430781,117370.0,117360.0,1.46579868]
[1758187666628,0.74799715,117370.0,117360.0,1.13302934]
[1758187667731,0.75099715,117370.0,117360.0,1.13302934]
[1758187667932,0.75099715,117370.0,117360.0,0.35558934]
[1758187668131,0.75099715,117370.0,117360.0,1.13298934]
[1758187669834,0.75099715,117370.0,117360.0,0.35558934]
[1758187670128,0.75099715,117370.0,117360.0,1.13290934]
[1758187670734,0.75099715,117370.0,117360.0,1.13274934]
[1758187672138,0.41710781,117370.0,117360.0,1.13274934]
[1758187672437,0.74999715,117370.0,117360.0,1.13274934]
[1758187673238,0.74999715,117370.0,117360.0,0.35558934]
[1758187673438,0.99999715,117370.0,117360.0,0.0227]
[1758187673738,0.99999715,117370.0,117360.0,0.7997]
[1758187673934,0.99999715,117370.0,117360.0,1.13258934]
[1758187676241,0.99999715,117370.0,117360.0,0.7997]
[1758187676440,0.99999715,117370.0,117360.0,1.13258934]
[1758187678540,0.99999715,117370.0,117360.0,0.35558934]
[1758187678738,0.99999715,117370.0,117360.0,1.13230934]
[1758187679247,0.99999715,117370.0,117360.0,0.35558934]
[1758187679440,0.99999715,117370.0,117360.0,1.13226934]
[1758187679944,0.99999715,117370.0,117360.0,0.35558934]
[1758187680140,0.99999715,117370.0,117360.0,1.13222934]
[1758187680644,0.99999715,117370.0,117360.0,1.13218934]
[1758187681444,0.66710781,117370.0,117360.0,1.13218934]
[1758187681646,0.99999715,117370.0,117360.0,1.13218934]
[1758187682641,0.99999715,117370.0,117360.0,0.35558934]
[1758187682847,0.99999715,117370.0,117360.0,1.13210934]
[1758187685947,0.63919715,117370.0,117360.0,1.13210934]
[1758187686149,0.99999715,117370.0,117360.0,1.13210934]
[1758187689654,0.99999715,117370.0,117360.0,0.35558934]
[1758187689956,0.03676,117360.0,117350.0,0.0001]
[1758187690254,1.06333868,117360.0,117350.0,1.13107934]
[1758187691856,1.06433868,117360.0,117350.0,1.13107934]
[1758187692859,1.06433868,117360.0,117350.0,0.79819]
[1758187693060,1.06433868,117360.0,117350.0,1.13107934]
[1758187693354,1.06433868,117360.0,117350.0,0.79819]
[1758187693548,1.06433868,117360.0,117350.0,1.13107934]
[1758187693747,0.39856,117360.0,117350.0,1.21625974]
[1758187693953,0.73144934,117360.0,117350.0,1.21625974]
[1758187694259,0.39856,117360.0,117350.0,1.21625974]
[1758187697060,0.73144934,117360.0,117350.0,1.21625974]
[1758187700665,0.39856,117360.0,117350.0,1.21625974]
[1758187700866,0.73144934,117360.0,117350.0,1.21625974]
[1758187701463,1.06433868,117360.0,117350.0,0.02223]
[1758187701764,1.06433868,117360.0,117350.0,0.77634]
[1758187701765,1.08554726,117360.0,117350.0,0.77634]
[1758187701966,1.08554726,117360.0,117350.0,0.79847]
[1758187702561,1.08554726,117360.0,117350.0,0.02223]
[1758187702758,1.08554726,117360.0,117350.0,0.79851]
[1758187704563,1.33554726,117360.0,117350.0,0.02223]
[1758187704768,1.33554726,117360.0,117350.0,0.79839]
[1758187704976,1.31433868,117360.0,117350.0,0.79839]
[1758187705273,1.31433868,117360.0,117350.0,0.02223]
[1758187705466,1.31433868,117360.0,117350.0,0.79835]
[1758187710977,1.31433868,117360.0,117350.0,1.13123934]
[1758187711174,1.31433868,117360.0,117350.0,0.79835]
[1758187713679,1.33552504,117360.0,117350.0,0.79835]
[1758187713881,1.11362674,117360.0,117350.0,0.79835]
[1758187716375,1.11362674,117360.0,117350.0,0.02223]
[1758187716778,1.11362674,117360.0,117350.0,0.79775]
[1758187717474,1.11362674,117360.0,117350.0,0.02223]
[1758187717679,1.11362674,117360.0,117350.0,0.79783]
[1758187719282,0.86362674,117360.0,117350.0,0.02223]
[1758187719485,0.86362674,117360.0,117350.0,0.77558]
[1758187721279,0.41974636,117360.0,117350.0,0.79849]
[1758187721486,0.86362674,117360.0,117350.0,0.79849]
[1758187724786,0.41974636,117360.0,117350.0,0.79849]
[1758187724990,0.86362674,117360.0,117350.0,0.79849]
[1758187729392,0.86362674,117360.0,117350.0,0.02301]
[1758187729593,0.86362674,117360.0,117350.0,0.79869]
[1758187730094,0.86362674,117360.0,117350.0,0.02301]
[1758187730294,0.86362674,117360.0,117350.0,0.79861]
[1758187733193,0.84244038,117360.0,117350.0,0.79861]
[1758187733394,0.86363754,117360.0,117350.0,0.79861]
[1758187737492,0.41975716,117360.0,117350.0,0.79861]
[1758187737796,0.86363754,117360.0,117350.0,0.79861]
[1758187740797,0.64169735,117360.0,117350.0,0.79861]
[1758187743694,0.45045814,117360.0,117350.0,0.79861]
[1758187743899,0.67239833,117360.0,117350.0,0.79861]
[1758187745498,0.67239833,117360.0,117350.0,0.02301]
[1758187745701,0.67239833,117360.0,117350.0,0.79833]
[1758187745899,0.67239833,117360.0,117350.0,1.02027019]
[1758187746100,0.67239833,117360.0,117350.0,0.79833]
[1758187750103,0.45045814,117360.0,117350.0,0.79833]
[1758187750301,0.67239833,117360.0,117350.0,0.79833]
[1758187752405,0.67239833,117360.0,117350.0,1.02027019]
[1758187753496,0.67239833,117360.0,117350.0,0.79833]
[1758187753804,0.64170013,117360.0,117350.0,0.79833]
[1758187754602,0.64170013,117360.0,117350.0,0.02301]
[1758187754907,0.64170013,117360.0,117350.0,0.79785]
[1758187755703,0.64170013,117360.0,117350.0,0.02301]
[1758187755897,0.86364032,117360.0,117350.0,0.52193]
[1758187756202,0.86364032,117360.0,117350.0,0.02301]
[1758187756406,0.86364032,117360.0,117350.0,0.7413]
[1758187757898,0.86364032,117360.0,117350.0,0.76306]
[1758187760110,0.41975994,117360.0,117350.0,0.76306]
[1758187760313,0.86364032,117360.0,117350.0,0.76306]
[1758187761015,1.22444032,117360.0,117350.0,0.76306]
[1758187775124,1.00250013,117360.0,117350.0,0.76306]
[1758187775724,1.44636044,117360.0,117350.0,1.09596025]
[1758187775921,1.4660252,117360.0,117350.0,1.09596025]
[1758187782227,0.8002247,117360.0,117350.0,0.76306]
[1758187782432,0.8002247,117360.0,117350.0,1.10763025]
[1758187782730,1.13312495,117360.0,117350.0,0.02186]
[1758187782931,1.4660252,117360.0,117350.0,1.12864025]
[1758187786534,1.4660252,117360.0,117350.0,0.35476025]
[1758187786724,1.4660252,117360.0,117350.0,1.12844025]
[1758187788034,1.4660252,117360.0,117350.0,0.35476025]
[1758187788235,1.4660252,117360.0,117350.0,1.12844025]
[1758187788736,1.4660252,117360.0,117350.0,0.79542]
[1758187788937,1.4660252,117360.0,117350.0,0.35476025]
[1758187789134,1.4660252,117360.0,117350.0,1.12832025]
[1758187789832,1.4660252,117360.0,117350.0,0.79574]
[1758187791931,1.4660252,117360.0,117350.0,0.7957]
[1758187793743,1.49672618,117360.0,117350.0,0.7957]
[1758187795042,1.49672618,117360.0,117350.0,0.77394]
[1758187797246,1.49672618,117360.0,117350.0,0.7966]
[1758187800150,1.49672618,117360.0,117350.0,0.77394]
[1758187800348,1.49672618,117360.0,117350.0,0.0001]
[1758187800545,0.01303,117330.0,117320.0,0.07867664]
[1758187800848,0.75019156,117330.0,117320.0,0.75938909]
[1758187801051,0.75019156,117330.0,117320.0,0.42648884]
[1758187801348,0.75019156,117330.0,117320.0,0.81300884]
[1758187801548,0.75019156,117330.0,117320.0,1.06300884]
[1758187801747,0.81981325,117330.0,117320.0,1.06300884]
[1758187801947,0.81981325,117330.0,117320.0,1.06600884]
[1758187802652,0.81981325,117330.0,117320.0,1.39890909]
[1758187803152,0.486913,117330.0,117320.0,1.39890909]
[1758187803353,0.486913,117330.0,117320.0,1.74347934]
[1758187803552,0.81981325,117330.0,117320.0,1.74247934]
[1758187803756,0.79876194,117330.0,117320.0,1.74247934]
[1758187804052,0.79876194,117330.0,117320.0,1.74147934]
[1758187805154,0.46586169,117330.0,117320.0,1.74147934]
[1758187805448,0.79876194,117330.0,117320.0,1.74047934]
[1758187810257,0.46586169,117330.0,117320.0,1.74047934]
[1758187810654,0.06962169,117330.0,117320.0,1.57568094]
[1758187810850,0.40253424,117340.0,117320.0,1.82568094]
[1758187811157,0.40324941,117340.0,117330.0,0.6993505]
[1758187811457,0.40324941,117340.0,117330.0,0.36645025]
[1758187812161,0.40424941,117340.0,117330.0,0.36645025]
[1758187812849,0.40424941,117340.0,117330.0,0.45164475]
[1758187813053,0.38183941,117340.0,117330.0,0.45164475]
[1758187814351,0.40424941,117340.0,117330.0,0.45164475]
[1758187814959,0.47392665,117340.0,117330.0,0.45164475]
[1758187816257,0.45151665,117340.0,117330.0,0.45164475]
[1758187816456,0.09071665,117340.0,117330.0,0.45164475]
[1758187816658,0.09071665,117340.0,117330.0,0.784545]
[1758187816960,0.02103941,117340.0,117330.0,0.45164475]
[1758187818260,0.02103941,117340.0,117330.0,0.51295255]
[1758187819662,0.02103941,117340.0,117330.0,0.45164475]
[1758187820356,0.02103941,117340.0,117330.0,1.22536475]
[1758187821052,0.04344941,117340.0,117330.0,0.1187445]
[1758187821258,0.38937966,117340.0,117330.0,0.8924645]
[1758187821560,0.38937966,117340.0,117330.0,0.43997475]
[1758187821757,0.41727941,117340.0,117330.0,1.21365475]
[1758187821962,0.75017966,117340.0,117330.0,1.27496255]
[1758187823462,0.75017966,117340.0,117330.0,0.50128255]
[1758187823663,0.75017966,117340.0,117330.0,1.27504255]
[1758187823964,0.75017966,117340.0,117330.0,1.27520255]
[1758187824664,0.75017966,117340.0,117330.0,0.50128255]
[1758187824857,0.75017966,117340.0,117330.0,1.18992805]
[1758187825059,0.41727941,117340.0,117330.0,1.18992805]
[1758187825363,0.75017966,117340.0,117330.0,1.18992805]
[1758187826567,1.08307991,117340.0,117330.0,1.18992805]
[1758187827273,1.08307991,117340.0,117330.0,0.8570278]
[1758187827468,1.08307991,117340.0,117330.0,1.18992805]
[1758187828469,0.75017966,117340.0,117330.0,1.18992805]
[1758187831069,1.08307991,117340.0,117330.0,0.41608805]
[1758187831269,1.08307991,117340.0,117330.0,1.18992805]
[1758187832569,0.75017966,117340.0,117330.0,1.18992805]
[1758187833372,0.41727941,117340.0,117330.0,1.18992805]
[1758187833570,0.75017966,117340.0,117330.0,1.27512255]
[1758187833769,0.75017966,117340.0,117330.0,1.21381475]
[1758187835069,0.41727941,117340.0,117330.0,1.21381475]
[1758187835271,0.75017966,117340.0,117330.0,1.21381475]
[1758187835769,0.63926716,117340.0,117330.0,1.10290225]
[1758187840171,0.63926716,117340.0,117330.0,1.16421005]
[1758187840767,0.63926716,117340.0,117330.0,1.10290225]
[1758187844977,0.63926716,117340.0,117330.0,0.1070745]
[1758187845176,0.63926716,117340.0,117330.0,1.10282225]
[1758187846779,0.63926716,117340.0,117330.0,0.32906225]
[1758187846980,0.63926716,117340.0,117330.0,1.10274225]
[1758187848079,0.63926716,117340.0,117330.0,0.32906225]
[1758187848278,0.63926716,117340.0,117330.0,1.10290225]
[1758187852078,0.63926716,117340.0,117330.0,1.10278225]
[1758187853885,0.41727941,117340.0,117330.0,1.10278225]
[1758187854687,0.40424941,117340.0,117330.0,1.10278225]
[1758187854889,0.40424941,117340.0,117330.0,1.11445225]
[1758187864902,0.41807941,117340.0,117330.0,0.24386775]
[1758187865202,0.41807941,117340.0,117330.0,1.01746775]
[1758187865395,0.41807941,117340.0,117330.0,0.24386775]
[1758187865602,0.64006716,117340.0,117330.0,1.01742775]
[1758187867001,0.64006716,117340.0,117330.0,0.24386775]
[1758187867200,0.64006716,117340.0,117330.0,1.01742775]
[1758187867398,0.86205491,117340.0,117330.0,0.79544]
[1758187867706,0.03529,117330.0,117320.0,0.0217]
[1758187868002,0.86142808,117330.0,117320.0,0.0216]
[1758187868300,0.86142808,117330.0,117320.0,0.79516]
[1758187868301,1.11142808,117330.0,117320.0,0.79516]
[1758187868501,0.88944033,117330.0,117320.0,0.79516]
[1758187869602,0.86807775,117330.0,117320.0,0.79516]
[1758187870799,0.01383,117320.0,117310.0,1.59606]
[1758187870999,0.01383,117320.0,117310.0,2.36956]
[1758187871000,0.8186055,117320.0,117310.0,2.36956]
[1758187871403,0.59661775,117320.0,117310.0,2.36956]
[1758187872202,0.59661775,117320.0,117310.0,2.37056]
[1758187872903,0.37463,117320.0,117310.0,2.37056]
[1758187873098,0.59661775,117320.0,117310.0,2.37056]
[1758187873999,0.37463,117320.0,117310.0,2.67775665]
[1758187874601,0.37463,117320.0,117310.0,2.4557689]
[1758187874802,0.37463,117320.0,117310.0,2.67775665]
[1758187875101,0.3608,117320.0,117310.0,2.68942665]
[1758187875798,0.3608,117320.0,117310.0,2.68842665]
[1758187880404,0.3608,117320.0,117310.0,0.8704789]
[1758187880709,0.38226,117320.0,117310.0,1.11406665]
[1758187884807,0.37473,117330.0,117310.0,1.11406665]
[1758187885001,0.38236,117330.0,117320.0,0.5624473]
[1758187885207,0.38226,117330.0,117320.0,0.5624473]
[1758187885810,0.38326,117330.0,117320.0,0.5624473]
[1758187886512,0.38326,117330.0,117320.0,0.1184718]
[1758187886713,0.38326,117330.0,117320.0,0.5624473]
[1758187888516,0.02246,117330.0,117320.0,0.5624473]
[1758187888711,0.38326,117330.0,117320.0,0.5624473]
[1758187892815,0.38326,117330.0,117320.0,1.3361273]
[1758187893408,0.001,117330.0,117320.0,1.60366426]
[1758187893603,0.001,117330.0,117320.0,1.96446426]
[1758187895017,0.001,117330.0,117320.0,2.18645201]
[1758187895317,0.0001,117340.0,117330.0,0.1182945]
[1758187895513,0.3609,117350.0,117340.0,0.1115173]
[1758187895810,0.84246476,117360.0,117350.0,0.11928]
[1758187896014,0.3824,117360.0,117350.0,0.45207881]
[1758187897212,0.39617,117360.0,117350.0,0.02243]
[1758187897414,0.46305542,117360.0,117350.0,0.02243]
[1758187897611,1.37865304,117360.0,117350.0,0.02243]